bitfinex-derivatives/quotes_ETHF0:USTF0_20251226
["timestamp","ask_amount","ask_price","bid_price","bid_amount"]
[1766761170952,0.00516575,2918.6,2917.2,0.00513733]
[1766761171159,0.17659575,2918.6,2917.2,0.00513733]
[1766761171360,0.00516575,2918.6,2917.2,0.00513733]
[1766761171560,0.87459444,2918.5,2915.9,0.17158]
[1766761171752,5.334,2918.6,2915.9,0.17158]
[1766761171954,0.87459066,2918.5,2916.0,4.44474458]
[1766761172157,0.8745793,2918.4,2916.0,4.44474458]
[1766761172356,5.33916575,2918.6,2916.0,4.44474458]
[1766761172561,0.00513733,2917.6,2917.0,0.00513733]
[1766761172956,0.01030308,2917.6,2916.0,4.44474458]
[1766761173153,0.01030308,2917.6,2915.1,0.17163]
[1766761173363,0.00513733,2917.6,2915.2,5.42965183]
[1766761173565,0.00513733,2917.6,2915.3,4.55049536]
[1766761174264,0.00513733,2917.6,2916.2,0.00347552]
[1766761174764,0.00516575,2917.4,2916.2,0.00347552]
[1766761175460,0.00513733,2917.6,2916.2,0.00347552]
[1766761175669,0.00252951,2918.7,2916.3,4.43431153]
[1766761175859,0.00252951,2918.7,2916.6,0.17154]
[1766761176055,0.00252951,2918.7,2917.0,0.17152]
[1766761176269,0.00252951,2918.7,2917.1,0.17152]
[1766761176574,0.00252951,2918.7,2917.2,0.17151]
[1766761176762,0.00252951,2918.7,2917.2,3.9799292]
[1766761176962,2.951e-05,2918.7,2917.2,4.59835015]
[1766761177166,46.135,2920.1,2917.2,4.59835015]
[1766761177369,0.00516575,2919.9,2917.2,4.59835015]
[1766761177759,0.17134,2920.1,2918.3,0.00513733]
[1766761177961,1.915,2920.8,2918.3,0.00513733]
[1766761178162,1.915,2920.8,2918.3,0.00286682]
[1766761178163,0.17652575,2919.8,2918.3,0.00286682]
[1766761178364,0.00516575,2919.8,2918.3,0.00286682]
[1766761178769,0.00513733,2919.3,2918.8,0.00513733]
[1766761179667,0.00513733,2919.3,2916.7,0.17154]
[1766761179870,0.00513733,2919.3,2916.1,0.17157]
[1766761180076,0.17142,2918.8,2916.8,4.53458734]
[1766761180373,0.17142,2918.8,2916.2,8.29069393]
[1766761180673,0.00513733,2917.8,2917.2,0.00513733]
[1766761180873,0.00754657,2917.8,2917.2,0.00513733]
[1766761181472,0.00229893,2917.5,2917.2,0.00513733]
[1766761181666,0.00229893,2917.5,2916.3,4.53458734]
[1766761181870,0.00754657,2917.8,2916.3,4.53458734]
[1766761182672,0.00754657,2917.8,2916.8,0.00513733]
[1766761183066,0.00229893,2917.6,2916.8,0.00513733]
[1766761183570,0.00754657,2917.8,2916.8,0.00513733]
[1766761183772,0.17142,2918.8,2916.9,4.52741587]
[1766761183973,0.00229893,2918.6,2916.9,4.52741587]
[1766761184275,0.00229893,2918.6,2916.8,0.00513733]
[1766761184580,0.17143,2918.7,2916.9,4.40078351]
[1766761184776,0.00513733,2918.1,2916.9,4.40078351]
[1766761184977,0.00352867,2918.7,2917.1,0.17152]
[1766761185176,0.17135,2920.1,2917.6,0.17149]
[1766761185385,0.00229893,2921.2,2917.6,0.17149]
[1766761185677,0.17136,2919.8,2917.7,4.42713871]
[1766761185871,0.00513733,2919.0,2918.5,0.00513733]
[1766761186065,0.00863462,2919.0,2918.5,0.00851081]
[1766761186874,0.00863462,2919.0,2918.5,1.081e-05]
[1766761187867,0.00863462,2919.0,2918.5,0.00514814]
[1766761188064,0.00863462,2919.0,2917.0,5.42252]
[1766761188476,0.00863462,2919.0,2917.1,4.44240637]
[1766761188870,0.17142,2918.9,2917.1,4.44240637]
[1766761189070,0.17142,2918.9,2917.7,0.00513733]
[1766761191679,0.17143,2918.7,2917.1,0.00437081]
[1766761191976,0.17143,2918.7,2917.2,4.40083188]
[1766761192572,0.17143,2918.7,2917.7,0.00347552]
[1766761192968,0.00229893,2918.5,2917.7,0.00347552]
[1766761194471,0.00863462,2919.0,2917.7,0.00347552]
[1766761194672,0.00229893,2918.3,2917.7,0.00347552]
[1766761194869,0.17142,2918.9,2917.7,0.00347552]
[1766761197681,0.00863462,2919.0,2917.7,0.00347552]
[1766761197881,0.00863462,2919.0,2917.8,4.44495754]
[1766761198494,0.00863462,2919.0,2917.7,0.00347552]
[1766761199201,0.17144,2918.5,2917.7,0.00347552]
[1766761199404,0.17144,2918.5,2917.1,0.00437081]
[1766761199602,0.17144,2918.4,2917.1,0.00437081]
[1766761200402,0.00863462,2919.0,2917.1,0.00437081]
[1766761200609,0.00863462,2919.0,2915.5,3.24461]
[1766761200906,0.17146,2918.2,2916.3,4.50334559]
[1766761201106,8.753,2918.9,2916.3,4.50334559]
[1766761201406,3.429,2918.4,2914.3,0.17168]
[1766761201602,0.00513733,2916.6,2914.3,0.17560963]
[1766761201803,0.17158,2916.2,2914.9,4.50334559]
[1766761202007,0.17158,2916.1,2914.4,4.50334559]
[1766761202207,0.17158,2916.1,2914.3,0.00392963]
[1766761202507,0.17158,2916.0,2914.3,0.00392963]
[1766761202804,40.8,2916.5,2914.3,0.00392963]
[1766761203000,0.17158,2916.1,2914.3,0.00392963]
[1766761203198,46.125,2916.5,2914.3,0.00392963]
[1766761203401,0.17165,2914.8,2914.3,2.963e-05]
[1766761203600,0.17169,2914.3,2911.5,0.15]
[1766761203804,5.326,2914.8,2911.5,0.15]
[1766761203805,0.1717,2914.1,2911.5,0.15]
[1766761204008,0.00514659,2913.1,2910.6,3.1931577]
[1766761204312,0.00514659,2913.1,2911.6,4.4072062]
[1766761204509,0.00931958,2913.1,2911.6,0.00254894]
[1766761204700,0.00931958,2913.1,2909.7,3.0212577]
[1766761204701,0.00931958,2913.1,2908.8,24.007]
[1766761204901,0.17181,2912.2,2908.9,0.172]
[1766761205101,0.00514659,2911.2,2909.0,3.65909124]
[1766761205302,0.17701659,2911.2,2907.0,0.17211]
[1766761205508,0.17187,2911.1,2907.0,0.17211]
[1766761205804,0.1719,2910.6,2908.0,0.00353646]
[1766761206107,0.00367157,2910.6,2908.0,0.00353646]
[1766761206412,0.00367157,2910.6,2906.0,0.01]
[1766761206413,0.17199,2909.1,2906.0,0.01]
[1766761206606,0.17199,2909.1,2905.8,0.27650751]
[1766761206911,0.00515588,2907.7,2906.1,3.77054541]
[1766761207113,0.00515588,2907.7,2905.2,0.21]
[1766761207311,0.17193,2910.1,2905.9,0.17218]
[1766761207608,0.17196,2909.7,2906.0,4.50673986]
[1766761207809,40.8,2909.8,2907.8,0.01404987]
[1766761208106,0.17199,2909.2,2907.8,3.501e-05]
[1766761208302,0.17201,2908.8,2905.4,4.45225992]
[1766761208504,0.00515588,2908.8,2908.2,0.00173712]
[1766761208709,0.135,2908.9,2908.5,6.89e-06]
[1766761208914,0.17198,2909.3,2905.5,0.1722]
[1766761209101,0.172,2908.9,2905.2,0.21]
[1766761209305,2.10108972,2909.5,2905.6,4.44990255]
[1766761209505,0.00515588,2907.8,2905.3,4.44990255]
[1766761209708,0.00515588,2907.8,2905.2,0.00326098]
[1766761209709,5.988,2907.7,2905.2,0.00326098]
[1766761210005,0.00798698,2907.8,2904.0,0.17229]
[1766761210210,0.141,2907.7,2904.2,0.17228]
[1766761210406,0.141,2907.7,2904.3,0.17227]
[1766761210599,0.0028311,2907.8,2904.4,0.17227]
[1766761210802,0.00515588,2906.3,2904.4,0.17543618]
[1766761211000,0.0028311,2907.8,2904.5,8.13955461]
[1766761211307,0.0028311,2907.8,2906.1,0.0116189]
[1766761211612,0.0028311,2907.8,2904.5,4.38839753]
[1766761211907,0.082,2907.7,2905.2,4.42959201]
[1766761212207,0.0028311,2907.8,2905.9,0.00515588]
[1766761213008,0.17214,2906.7,2904.4,0.00316618]
[1766761213312,0.34414,2906.7,2904.4,0.00316618]
[1766761213508,0.17214,2906.6,2904.4,0.00316618]
[1766761213811,5.343,2906.5,2904.4,0.00316618]
[1766761214002,6.90083783,2907.8,2904.4,0.00316618]
[1766761214205,0.00515588,2905.7,2905.2,5.88e-06]
[1766761214412,0.00881692,2905.7,2905.2,5.88e-06]
[1766761214711,6.0,2905.6,2904.4,0.00316618]
[1766761214913,0.00881692,2905.7,2902.4,0.043]
[1766761215411,0.00881692,2905.7,2902.5,8.13920154]
[1766761215610,0.00881692,2905.7,2903.0,0.17235]
[1766761215611,0.00366104,2905.7,2903.0,0.17235]
[1766761216012,0.00366104,2905.7,2903.1,4.43369267]
[1766761216211,0.1722,2905.6,2903.1,4.43369267]
[1766761216409,0.00366104,2905.7,2903.0,0.00266367]
[1766761216613,0.00366104,2905.7,2903.2,3.90902572]
[1766761216814,0.00366104,2905.7,2904.2,0.0051652]
[1766761217717,0.00366104,2905.7,2904.3,4.56303151]
[1766761217910,0.00366104,2905.7,2904.2,0.0051652]
[1766761218307,0.00366104,2905.7,2904.3,4.47582596]
[1766761218513,0.17586104,2905.7,2904.2,0.0051652]
[1766761219009,0.0051652,2905.2,2904.2,0.0051652]
[1766761219313,0.00366104,2905.7,2904.3,4.42163518]
[1766761219612,0.17222,2905.2,2904.2,0.0051652]
[1766761219809,0.00366104,2905.7,2904.2,5.2e-06]
[1766761220110,0.17225,2904.8,2903.0,0.00266367]
[1766761220416,0.17221,2905.5,2903.1,4.53271715]
[1766761220707,0.00366104,2905.7,2903.0,0.00266367]
[1766761220910,40.8,2905.4,2903.0,0.00266367]
[1766761221102,0.17228,2904.2,2903.0,0.00266367]
[1766761221309,0.27422425,2904.5,2900.5,0.27515913]
[1766761221505,8.778,2904.9,2899.5,0.17255]
[1766761221708,42.90108972,2905.4,2900.6,3.8016258]
[1766761221709,3.429,2904.7,2900.6,3.8016258]
[1766761221908,5.35,2904.8,2900.6,3.8016258]
[1766761222103,0.0051652,2903.0,2902.4,0.0051652]
[1766761222315,0.17227,2904.4,2902.4,0.0076777]
[1766761222513,0.17222,2905.3,2902.4,0.0025125]
[1766761222712,0.17222,2905.3,2902.5,8.22315276]
[1766761222912,0.17222,2905.3,2902.5,13.47915276]
[1766761223211,0.17222,2905.3,2902.4,0.0025125]
[1766761223212,0.00257333,2905.3,2902.4,0.0025125]
[1766761223404,0.1723,2903.9,2902.4,0.0025125]
[1766761223610,0.0051652,2904.2,2902.4,0.0025125]
[1766761223810,0.0051652,2904.2,2902.5,4.55294999]
[1766761224010,0.0051652,2904.2,2902.4,0.0025125]
[1766761224413,0.0051652,2904.2,2903.0,5.2e-06]
[1766761225017,0.17231,2903.7,2903.0,5.2e-06]
[1766761225210,0.17233,2903.4,2902.4,0.0025125]
[1766761225417,0.0051652,2904.2,2902.4,0.0025125]
[1766761225717,0.17229,2904.1,2900.3,0.032]
[1766761225916,0.00257333,2905.3,2902.5,4.50207557]
[1766761226106,40.8,2905.2,2901.8,0.17242]
[1766761226305,40.8,2905.2,2900.2,10.15868528]
[1766761226306,0.0051652,2904.2,2903.6,0.0051652]
[1766761226617,0.1723,2904.0,2901.9,3.84172399]
[1766761226819,0.0051652,2904.2,2901.2,0.17245]
[1766761227013,0.0051652,2904.2,2902.0,4.51690941]
[1766761227220,0.17226,2904.5,2902.0,4.51690941]
[1766761227413,0.0051652,2903.5,2901.9,0.17242]
[1766761227715,0.17224,2904.9,2902.2,0.1724]
[1766761228018,0.00257333,2905.3,2902.3,8.38295684]
[1766761228319,0.00257333,2905.3,2901.9,0.00392757]
[1766761228320,0.00257333,2905.3,2902.2,4.46883701]
[1766761228511,0.17228,2904.3,2902.2,4.46883701]
[1766761228709,0.17228,2904.3,2901.9,0.00392757]
[1766761228710,0.0051652,2904.0,2902.4,4.46883701]
[1766761228916,0.0051652,2904.0,2902.3,3.85095189]
[1766761229115,0.0051652,2904.0,2902.5,3.85095189]
[1766761229315,0.0051652,2904.0,2902.4,4.43711505]
[1766761229518,0.17225,2904.7,2902.6,4.43711505]
[1766761229819,0.17223,2905.2,2902.7,8.88218696]
[1766761230209,0.17223,2905.1,2902.7,8.05819512]
[1766761230414,0.17223,2905.1,2902.7,4.43400816]
[1766761230617,0.17223,2905.1,2903.6,0.0051652]
[1766761230811,0.00257333,2905.3,2903.6,5.2621652]
[1766761231113,0.17219,2905.8,2903.7,9.76817747]
[1766761231314,0.27855206,2907.1,2902.4,0.17239]
[1766761231514,0.17224,2905.0,2902.5,0.28138]
[1766761231716,0.17224,2905.0,2903.5,0.0051652]
[1766761232120,0.1756261,2905.0,2903.6,4.50613508]
[1766761232316,0.0033861,2905.0,2903.6,4.50613508]
[1766761233121,0.0033861,2905.0,2903.5,5.2e-06]
[1766761233324,0.17227,2904.4,2903.5,5.2e-06]
[1766761233514,0.17228,2904.3,2903.5,5.2e-06]
[1766761233919,0.0033861,2905.0,2903.5,5.2e-06]
[1766761234216,0.0033861,2905.0,2901.1,0.17246]
[1766761234217,0.85837925,2904.9,2901.1,0.17246]
[1766761234416,0.17231,2903.8,2901.4,0.151]
[1766761235019,0.17231,2903.8,2901.1,0.41246]
[1766761235218,0.0051652,2903.1,2902.6,0.0051652]
[1766761235623,0.0033861,2905.0,2902.7,4.47771793]
[1766761236014,0.1756161,2905.0,2902.6,0.0051652]
[1766761236217,0.17224,2904.9,2902.7,4.50607478]
[1766761236620,0.0033861,2905.0,2902.7,9.09907478]
[1766761237021,0.0033861,2905.0,2902.8,8.95486621]
[1766761237422,1.672182,2906.6,2902.8,8.95486621]
[1766761237423,0.17216,2906.2,2903.5,0.17232]
[1766761237620,0.17216,2906.2,2904.6,0.0051652]
[1766761237823,0.17212,2906.9,2904.6,0.0051652]
[1766761238024,0.17212,2906.9,2904.7,4.56593138]
[1766761238220,1.17113661,2907.6,2904.7,4.56593138]
[1766761238427,0.17211,2907.2,2904.7,0.00422738]
[1766761238622,0.00341239,2906.2,2905.7,0.0051652]
[1766761238929,0.00341239,2906.2,2904.8,4.51786254]
[1766761238930,1.17113661,2906.8,2904.7,0.00422738]
[1766761239132,0.17217,2906.1,2904.7,0.00422738]
[1766761239341,0.17218,2905.9,2904.7,0.00422738]
[1766761239630,0.8648807,2905.8,2903.0,0.129]
[1766761239825,0.8648807,2905.8,2901.6,1.22967739]
[1766761239826,0.0051652,2904.7,2901.7,0.17243]
[1766761240020,0.0051652,2904.7,2903.1,4.40523512]
[1766761240232,0.0051652,2904.7,2902.7,4.40523512]
[1766761240430,0.00906184,2904.7,2903.2,4.40523512]
[1766761240930,0.00906184,2904.7,2903.7,0.0051652]
[1766761241132,0.17229,2904.1,2902.7,0.00241632]
[1766761241528,0.1723,2904.0,2902.7,0.00241632]
[1766761242125,0.00906184,2904.7,2903.1,0.0051652]
[1766761242324,0.00906184,2904.7,2903.1,5.2601652]
[1766761242530,0.86736004,2904.6,2903.2,4.563263]
[1766761242726,0.17228,2904.2,2903.1,0.0051652]
[1766761243323,0.00906184,2904.7,2903.1,0.0051652]
[1766761243530,0.00906184,2904.7,2903.2,4.41287558]
[1766761243531,0.86749052,2904.6,2903.2,4.41287558]
[1766761243741,0.00906184,2904.7,2903.2,4.41287558]
[1766761244030,1.03983543,2904.6,2903.1,0.0051652]
[1766761244233,0.86757543,2904.5,2903.1,0.0051652]
[1766761244429,0.00906184,2904.7,2903.2,4.40301347]
[1766761245630,0.86746923,2904.6,2903.1,0.0051652]
[1766761245828,0.86746923,2904.6,2903.1,2.283e-05]
[1766761245829,0.86746923,2904.5,2903.1,2.283e-05]
[1766761246230,0.86746923,2904.4,2903.1,2.283e-05]
[1766761246431,0.17226,2904.6,2903.1,2.283e-05]
[1766761246738,0.00906184,2904.7,2903.1,2.283e-05]
[1766761246932,0.17226,2904.6,2903.1,2.283e-05]
[1766761247638,0.17226,2904.6,2903.2,4.42468939]
[1766761247840,0.17226,2904.6,2903.1,2.283e-05]
[1766761248137,0.86770422,2904.5,2903.1,2.283e-05]
[1766761248330,0.17226,2904.6,2903.1,2.283e-05]
[1766761248532,0.86823517,2904.5,2903.2,4.39580315]
[1766761248739,0.17226,2904.6,2903.2,4.39580315]
[1766761248928,0.86826047,2904.5,2903.1,2.283e-05]
[1766761249134,0.17231,2903.7,2903.1,2.283e-05]
[1766761249439,0.17228,2904.3,2902.7,0.00241632]
[1766761249632,0.86837233,2904.2,2902.7,0.00241632]
[1766761249841,0.86837233,2904.1,2902.8,4.42262305]
[1766761250038,0.17228,2904.3,2902.7,0.00241632]
[1766761250239,0.1723,2903.9,2903.2,0.0051652]
[1766761250541,0.1723,2903.9,2902.7,0.00241632]
[1766761251436,0.86821615,2903.8,2901.6,1.22967739]
[1766761251649,2.03935276,2903.7,2901.6,1.22967739]
[1766761251938,0.86821615,2903.6,2901.6,1.22967739]
[1766761252141,0.86821615,2903.5,2901.6,1.22967739]
[1766761252434,1.17113661,2903.8,2902.3,0.00344346]
[1766761252435,0.0051652,2902.8,2902.3,0.00344346]
[1766761253031,1.17113661,2903.7,2902.3,0.00344346]
[1766761253237,0.17228,2904.2,2902.3,0.00344346]
[1766761253442,0.1723,2903.9,2902.4,4.51356048]
[1766761253635,0.86594321,2903.8,2902.3,0.00344346]
[1766761253844,0.86594321,2903.7,2902.3,0.00344346]
[1766761254032,0.0051652,2903.3,2902.3,0.00344346]
[1766761254231,1.17113661,2904.2,2902.3,0.00344346]
[1766761254440,1.34339661,2904.5,2902.4,4.52318965]
[1766761254632,0.00389664,2904.7,2902.5,0.17238]
[1766761254838,0.86605614,2904.6,2902.5,0.17238]
[1766761255039,0.00389664,2904.7,2902.6,13.85859569]
[1766761255238,0.86607996,2904.6,2902.6,4.52318965]
[1766761255441,0.86607996,2904.6,2902.3,0.00344346]
[1766761255442,0.17235,2903.1,2902.3,4.346e-05]
[1766761256039,1.34343661,2903.8,2902.3,4.346e-05]
[1766761256242,0.86585172,2903.7,2902.3,4.346e-05]
[1766761256541,0.0051652,2903.9,2902.4,4.56009458]
[1766761256740,0.1774652,2903.9,2902.3,4.346e-05]
[1766761257042,0.86589888,2903.8,2902.3,4.346e-05]
[1766761257243,0.1774652,2903.9,2902.4,4.45153237]
[1766761257640,0.0051652,2903.9,2902.4,4.45153237]
[1766761257846,0.00389664,2904.7,2902.5,3.75903692]
[1766761258237,1.17113661,2905.8,2903.3,0.17233]
[1766761258435,1.17113661,2905.8,2902.6,4.39728396]
[1766761258436,0.86654467,2905.7,2903.4,5.42333]
[1766761258637,0.86654467,2905.6,2903.4,8.00297128]
[1766761258843,0.0051652,2904.8,2904.2,0.0051652]
[1766761259340,0.00801539,2904.8,2904.2,0.00767088]
[1766761260640,0.17227,2904.5,2902.1,0.1724]
[1766761260843,0.86616318,2904.4,2902.2,5.4224]
[1766761261037,0.17227,2904.4,2902.2,8.50222287]
[1766761261345,0.86605723,2904.3,2902.2,5.249]
[1766761261651,0.0051652,2903.5,2903.0,0.0051652]
[1766761261948,1.17113661,2904.7,2903.0,0.0051652]
[1766761261949,0.17225,2904.7,2903.0,0.0051652]
[1766761262145,0.86643875,2904.6,2903.0,0.0051652]
[1766761262351,0.17225,2904.7,2903.0,0.0051652]
[1766761262535,1.03890202,2904.6,2903.0,0.0051652]
[1766761262840,0.00285019,2904.8,2902.2,0.00441138]
[1766761262841,2.03777863,2904.5,2902.2,0.00441138]
[1766761263047,0.17233,2903.5,2902.2,0.00441138]
[1766761263242,1.17113661,2904.6,2902.2,0.00441138]
[1766761263438,1.17113661,2904.4,2902.2,1.38e-06]
[1766761263638,4.60013661,2903.9,2902.2,1.38e-06]
[1766761263845,0.0051652,2903.3,2899.9,0.17254]
[1766761264040,0.86607296,2903.2,2900.0,0.159]
[1766761264240,0.17245,2901.5,2899.3,0.00866797]
[1766761264442,1.76807994,2902.1,2899.3,0.00866797]
[1766761264637,0.86355725,2902.0,2899.4,4.47484107]
[1766761264840,1.76807994,2900.7,2899.4,0.0025736]
[1766761265046,1.76807994,2900.7,2899.2,0.00189328]
[1766761265047,1.76807994,2900.7,2899.2,0.00186688]
[1766761265246,1.67510325,2902.0,2900.4,0.0051652]
[1766761265247,0.0051652,2901.0,2900.4,0.0051652]
[1766761265450,0.0051652,2901.0,2899.3,4.49542776]
[1766761265851,0.0051652,2901.0,2899.2,0.00186688]
[1766761266051,0.0051652,2901.0,2899.2,0.00571157]
[1766761266244,0.00292125,2902.0,2899.5,0.17256]
[1766761266438,0.00292125,2902.0,2899.8,1.76807994]
[1766761266754,0.17232,2903.6,2900.6,0.17249]
[1766761267047,1.76807994,2904.2,2900.7,4.55783523]
[1766761267238,0.155,2904.8,2900.7,4.55783523]
[1766761267239,0.17226,2904.5,2900.7,8.15902488]
[1766761267444,0.17228,2904.3,2902.2,0.0051652]
[1766761267645,0.00352445,2904.3,2902.2,0.0087641]
[1766761267846,0.17232,2903.5,2902.2,0.0087641]
[1766761268056,0.17233,2903.3,2902.2,0.0087641]
[1766761268256,0.17228,2904.2,2902.2,0.0087641]
[1766761268443,0.0051652,2903.5,2902.2,0.0087641]
[1766761268647,0.0051652,2903.5,2899.8,1.76807994]
[1766761268953,0.17231,2903.7,2900.5,1.76807994]
[1766761269154,0.17231,2903.7,2900.7,8.28638296]
[1766761269354,0.17232,2903.6,2900.6,8.39289306]
[1766761269656,40.8,2904.2,2901.8,0.0051652]
[1766761269947,0.17229,2904.0,2901.8,0.0051652]
[1766761270151,42.56807994,2904.2,2901.8,0.0051652]
[1766761270341,0.17235,2903.1,2901.8,0.0051652]
[1766761270548,42.56807994,2904.2,2901.8,0.0051652]
[1766761270549,0.17236,2903.0,2901.8,0.0051652]
[1766761270751,0.17237,2902.7,2900.6,0.00411281]
[1766761271352,1.76807994,2903.2,2900.6,0.00411281]
[1766761271546,0.17238,2902.5,2899.6,0.17255]
[1766761271749,0.17238,2902.5,2899.2,0.00186688]
[1766761271750,0.17238,2902.5,2900.8,0.0051652]
[1766761271944,0.17233,2903.4,2900.8,0.0051652]
[1766761272151,0.00352445,2904.3,2900.9,4.38632807]
[1766761272152,6.27307994,2904.1,2900.9,4.38632807]
[1766761272447,0.17237,2902.7,2900.4,4.38632807]
[1766761272647,0.0051652,2901.8,2901.3,0.0051652]
[1766761272952,0.0090041,2901.8,2901.3,0.0051652]
[1766761273151,4.5,2903.9,2901.3,0.0051652]
[1766761273359,0.17235,2903.0,2901.3,0.0051652]
[1766761273544,0.17238,2902.5,2901.3,0.0051652]
[1766761273948,3.429,2901.8,2899.2,0.00186688]
[1766761274249,5.355,2902.2,2899.2,0.00186688]
[1766761274444,0.17253,2900.1,2899.2,0.00186688]
[1766761274841,1.76807994,2900.6,2898.2,0.26033668]
[1766761275051,0.17256,2899.5,2898.2,0.26033668]
[1766761275250,0.0051652,2899.9,2898.2,0.26033668]
[1766761275452,0.17255,2899.7,2898.2,0.26033668]
[1766761275650,0.17258,2899.2,2898.2,0.25000218]
[1766761275850,0.0051652,2899.9,2898.2,0.25000218]
[1766761276051,0.0051652,2899.9,2898.2,0.25440437]
[1766761276259,0.00328018,2900.1,2898.8,0.00517446]
[1766761276448,40.8,2902.1,2898.8,0.00517446]
[1766761276652,0.17242,2901.9,2898.9,8.41598942]
[1766761276846,0.17246,2901.3,2898.9,8.24339942]
[1766761277054,1.76807994,2902.5,2898.9,4.53580208]
[1766761277250,0.00517446,2901.0,2899.0,3.70759734]
[1766761277447,0.00907056,2901.0,2898.9,4.53580208]
[1766761277757,0.00907056,2901.0,2898.8,4.44728811]
[1766761277758,0.17249,2900.7,2898.8,4.44728811]
[1766761277945,0.17251,2900.4,2898.3,5.246]
[1766761278144,0.17251,2900.4,2898.4,4.54908977]
[1766761278353,0.17251,2900.4,2899.1,0.00517446]
[1766761278657,0.17251,2900.3,2899.1,0.00517446]
[1766761278850,0.00907056,2901.0,2899.1,0.00517446]
[1766761279157,0.00907056,2901.0,2898.2,0.25440437]
[1766761279351,0.17251,2900.3,2898.2,0.25440437]
[1766761279553,0.17256,2899.6,2898.2,0.25440437]
[1766761280052,0.00517446,2899.2,2898.2,0.25440437]
[1766761280453,0.0038961,2901.0,2898.3,4.45042446]
[1766761280658,0.0038961,2901.0,2898.2,0.25440437]
[1766761280659,0.17252,2900.2,2898.2,0.25440437]
[1766761280961,0.1763661,2901.0,2898.3,8.34944209]
[1766761281151,0.17249,2900.7,2898.3,8.34944209]
[1766761281458,0.00517446,2899.8,2899.2,0.00517446]
[1766761282062,0.00517446,2899.8,2898.3,4.45042446]
[1766761282453,0.1763661,2901.0,2898.4,3.9643042]
[1766761282754,0.0038961,2901.0,2898.5,4.43569556]
[1766761282955,0.0038961,2901.0,2899.1,0.17258]
[1766761283459,0.0038961,2901.0,2899.8,0.00517446]
[1766761283757,0.17248,2900.9,2899.8,0.00517446]
[1766761284354,0.0038961,2901.0,2899.8,0.00517446]
[1766761284561,0.00517446,2900.7,2899.8,0.00517446]
[1766761284951,0.0038961,2901.0,2899.8,0.00517446]
[1766761285956,0.00517446,2900.7,2899.8,0.00517446]
[1766761289753,0.17251,2900.5,2898.2,0.25440437]
[1766761289955,0.17251,2900.5,2898.2,2.02440437]
[1766761290157,0.00517446,2900.7,2898.6,4.54847089]
[1766761290456,0.00517446,2900.7,2898.2,0.25440437]
[1766761290651,0.00517446,2900.7,2898.7,3.97485634]
[1766761290851,0.00517446,2900.7,2899.4,0.00517446]
[1766761291757,0.00517446,2900.7,2897.1,3.0212577]
[1766761291758,0.17258,2899.1,2898.2,4.37e-06]
[1766761292157,0.1726,2898.8,2896.4,0.386]
[1766761292556,0.00517446,2898.4,2897.9,0.00517446]
[1766761292857,0.00517446,2898.4,2895.9,1.76807994]
[1766761293059,0.00517446,2898.4,2895.6,0.17279]
[1766761293257,0.00517446,2898.4,2895.3,0.107]
[1766761293258,6.00894174,2898.4,2895.3,0.107]
[1766761293458,6.00894174,2898.4,2893.4,11.20429776]
[1766761293459,0.17264,2898.3,2895.6,1.76807994]
[1766761293667,0.00376728,2898.4,2895.8,0.17278]
[1766761293956,0.00376728,2898.4,2896.7,0.17272]
[1766761294256,0.00376728,2898.4,2896.8,4.54646142]
[1766761294676,0.00376728,2898.4,2896.7,0.00297146]
[1766761294957,0.00376728,2898.4,2897.3,0.00517446]
[1766761296060,0.17253,2900.0,2897.4,4.43869081]
[1766761296249,5.62378723,2900.5,2897.4,4.43869081]
[1766761296250,0.27078723,2900.5,2897.4,4.43869081]
[1766761296456,0.17256,2899.6,2897.3,0.00517446]
[1766761296659,0.17256,2899.6,2897.4,4.49104387]
[1766761296859,1.17113661,2901.1,2897.4,4.49104387]
[1766761296860,0.1725,2900.5,2897.4,8.38291442]
[1766761297161,0.1725,2900.5,2897.0,1.76807994]
[1766761297162,0.00517446,2899.2,2898.7,0.00517446]
[1766761297364,0.00305072,2900.5,2898.7,0.00517446]
[1766761297671,0.00305072,2900.5,2898.8,8.11872278]
[1766761297960,0.00305072,2900.5,2898.8,0.00313375]
[1766761298166,0.17251,2900.3,2898.8,0.00313375]
[1766761298361,0.00305072,2900.5,2898.9,4.5377882]
[1766761298970,40.8,2901.8,2899.0,5.244]
[1766761299268,0.17242,2901.8,2899.3,0.17257]
[1766761299455,0.17242,2901.8,2900.3,0.00517446]
[1766761299656,0.17242,2901.8,2899.3,0.17257]
[1766761299657,1.76807994,2901.9,2899.4,4.55230886]
[1766761300061,1.77151996,2901.9,2899.5,4.011]
[1766761300460,1.77151996,2901.9,2899.6,4.42156091]
[1766761300664,1.77151996,2901.9,2900.5,0.00517446]
[1766761300968,1.94049994,2901.8,2899.6,8.08480353]
[1766761301157,1.94049994,2901.8,2899.6,4.42156091]
[1766761301562,0.17244,2901.6,2899.6,4.42156091]
[1766761301761,0.17244,2901.6,2899.2,9.06023864]
[1766761302059,0.17244,2901.6,2900.1,0.00517446]
[1766761302562,0.17244,2901.6,2900.2,4.55438888]
[1766761302956,0.00344002,2901.9,2900.1,0.00517446]
[1766761303168,0.00339385,2901.3,2900.1,0.00517446]
[1766761303960,0.00339385,2901.3,2900.2,4.55781119]
[1766761304257,0.00339385,2901.3,2900.1,0.00517446]
[1766761305061,0.00339385,2901.3,2900.2,4.49110501]
[1766761305264,0.17246,2901.1,2900.1,0.00517446]
[1766761305470,0.00339385,2901.3,2900.1,0.00517446]
[1766761305869,0.17246,2901.2,2900.1,0.00517446]
[1766761306267,0.17246,2901.2,2899.4,0.148]
[1766761306268,0.17248,2900.9,2898.8,0.00313375]
[1766761306463,0.00339385,2901.3,2898.8,0.00313375]
[1766761306464,0.1725,2900.5,2898.8,0.00313375]
[1766761306664,0.17253,2900.0,2898.8,0.00313375]
[1766761306870,40.8,2901.2,2897.0,5.24]
[1766761306871,0.17259,2899.1,2897.0,5.24]
[1766761307068,0.1726,2898.8,2896.6,5.24]
[1766761307260,0.17263,2898.4,2896.4,3.72252005]
[1766761307460,0.17258,2899.2,2897.4,0.00517446]
[1766761307868,0.17570426,2899.2,2897.5,4.48201675]
[1766761308072,0.00312426,2899.2,2897.5,4.48201675]
[1766761308272,0.17258,2899.1,2897.5,4.48201675]
[1766761308472,0.00339385,2898.6,2897.4,0.00788809]
[1766761308673,0.00312426,2899.2,2897.4,0.00788809]
[1766761308674,0.00312426,2899.2,2897.5,4.46063123]
[1766761309269,0.17570426,2899.2,2897.4,0.00788809]
[1766761309479,0.17570426,2899.2,2897.5,4.46422909]
[1766761309670,0.17570426,2899.2,2897.5,8.2566626]
[1766761309671,0.00312426,2899.2,2897.5,8.2566626]
[1766761309978,0.00312426,2899.2,2897.5,4.46422909]
[1766761310373,0.00312426,2899.2,2897.6,3.79243351]